bitfinex/quotes_BTCUSD_20240730
["timestamp","ask_amount","ask_price","bid_price","bid_amount"]
[1722326734309,2.47337771,67066.0,67065.0,0.000913]
[1722326735293,2.33540932,67066.0,67065.0,0.000913]
[1722326735495,2.37045027,67066.0,67065.0,0.000913]
[1722326735695,2.38045027,67066.0,67065.0,0.000913]
[1722326735943,2.37045027,67066.0,67065.0,0.000913]
[1722326736335,2.38045027,67066.0,67065.0,0.000913]
[1722326737078,2.37045027,67066.0,67065.0,0.000913]
[1722326737250,2.38045027,67066.0,67065.0,0.000913]
[1722326738482,2.35201473,67066.0,67065.0,0.000913]
[1722326738777,2.40635131,67066.0,67065.0,0.000913]
[1722326739162,2.39635131,67066.0,67065.0,0.000913]
[1722326739790,2.40635131,67066.0,67065.0,0.000913]
[1722326740463,3.13585131,67066.0,67065.0,0.000913]
[1722326741529,3.35526566,67066.0,67065.0,0.000913]
[1722326741756,3.13585131,67066.0,67065.0,0.000913]
[1722326742059,3.13630268,67066.0,67065.0,0.000913]
[1722326742261,2.99540915,67066.0,67065.0,0.000913]
[1722326742474,3.13629982,67066.0,67065.0,0.000913]
[1722326742676,3.35575142,67066.0,67065.0,0.000913]
[1722326743326,3.35575142,67066.0,67065.0,0.00047886]
[1722326743327,3.08789982,67066.0,67065.0,0.00047886]
[1722326744373,3.08772374,67066.0,67065.0,0.00047886]
[1722326745260,3.08772374,67066.0,67059.0,1e-08]
[1722326745261,1.87438,67060.0,67059.0,1e-08]
[1722326745459,2.24106847,67060.0,67059.0,1e-08]
[1722326745586,2.46058882,67060.0,67059.0,1e-08]
[1722326745788,2.53930847,67060.0,67059.0,1e-08]
[1722326746102,2.40560847,67060.0,67059.0,1e-08]
[1722326746436,1.79736847,67060.0,67059.0,0.08200001]
[1722326746604,2.09736847,67060.0,67059.0,0.08200001]
[1722326746812,2.1728553,67060.0,67059.0,0.08200001]
[1722326747008,1.80136847,67060.0,67059.0,0.08200001]
[1722326747391,1.80936847,67060.0,67059.0,0.08200001]
[1722326748541,2.14372224,67060.0,67059.0,0.08200001]
[1722326748742,2.15372224,67060.0,67059.0,0.08200001]
[1722326748875,2.14372224,67060.0,67059.0,0.08200001]
[1722326749417,2.29441656,67060.0,67059.0,0.08200001]
[1722326749620,2.73575656,67060.0,67059.0,1e-08]
[1722326751311,2.85375656,67060.0,67059.0,1e-08]
[1722326751530,2.71222047,67060.0,67059.0,1e-08]
[1722326751730,2.85312021,67060.0,67059.0,1e-08]
[1722326752179,2.71222047,67060.0,67059.0,1e-08]
[1722326752342,2.85375587,67060.0,67059.0,1e-08]
[1722326753118,2.83975587,67060.0,67059.0,1e-08]
[1722326753363,2.84575587,67060.0,67059.0,1e-08]
[1722326753573,2.85975587,67060.0,67059.0,1e-08]
[1722326754232,2.79003312,67060.0,67059.0,1e-08]
[1722326754921,2.64872047,67060.0,67059.0,1e-08]
[1722326755099,2.76663228,67060.0,67059.0,1e-08]
[1722326756190,2.97233712,67060.0,67059.0,1e-08]
[1722326756594,2.75263228,67060.0,67059.0,1e-08]
[1722326757094,2.76663228,67060.0,67059.0,1e-08]
[1722326757295,2.75263228,67060.0,67059.0,1e-08]
[1722326757593,2.75263228,67060.0,67057.0,0.009229]
[1722326757594,1.660369,67058.0,67057.0,1e-08]
[1722326757837,2.08927379,67058.0,67057.0,1e-08]
[1722326758244,2.30884476,67058.0,67057.0,1e-08]
[1722326758441,1.342237,67052.0,67051.0,0.076]
[1722326758599,1.70934477,67052.0,67051.0,0.076]
[1722326758810,1.72934477,67052.0,67051.0,0.076]
[1722326759010,1.88003909,67052.0,67051.0,0.076]
[1722326759437,1.36226,67051.0,67050.0,0.07534716]
[1722326759638,1.72936777,67051.0,67050.0,0.07534716]
[1722326760265,1.71936777,67051.0,67050.0,0.07534716]
[1722326760686,1.73336777,67051.0,67050.0,0.07534716]
[1722326761095,1.75120479,67051.0,67050.0,0.07534716]
[1722326761300,1.80434866,67051.0,67050.0,0.07534716]
[1722326761439,1.81834866,67051.0,67050.0,0.07534716]
[1722326761644,1.81835519,67051.0,67050.0,0.07534716]
[1722326762678,1.84176008,67051.0,67050.0,0.07534716]
[1722326762882,2.14004008,67051.0,67050.0,0.07534716]
[1722326763344,1.99953469,67051.0,67050.0,0.07534716]
[1722326763493,2.13960879,67051.0,67050.0,0.07534716]
[1722326763897,2.1162039,67051.0,67050.0,0.07534716]
[1722326764095,2.02923467,67051.0,67050.0,0.07534716]
[1722326764297,2.11655424,67051.0,67050.0,0.07534716]
[1722326765101,2.10655424,67051.0,67050.0,0.07534716]
[1722326765349,2.11655424,67051.0,67050.0,0.07534716]
[1722326766714,2.13995884,67051.0,67050.0,0.07534716]
[1722326767252,2.11655424,67051.0,67050.0,0.07534716]
[1722326767448,2.11644726,67051.0,67050.0,0.07534716]
[1722326769054,2.23914926,67051.0,67050.0,0.07534716]
[1722326769450,2.17624926,67051.0,67050.0,0.07534716]
[1722326769845,2.19965415,67051.0,67050.0,0.07534716]
[1722326770839,2.20037863,67051.0,67050.0,0.07534716]
[1722326771271,2.2074918,67051.0,67050.0,0.07534716]
[1722326771455,2.2074918,67051.0,67050.0,0.13574716]
[1722326771456,1.89909816,67051.0,67050.0,0.13574716]
[1722326771674,1.89909816,67051.0,67050.0,0.21374716]
[1722326771675,1.60081816,67051.0,67050.0,0.21374716]
[1722326771877,1.57781816,67051.0,67050.0,0.21374716]
[1722326772236,1.55441327,67051.0,67050.0,0.21374716]
[1722326772846,1.70510759,67051.0,67050.0,0.21374716]
[1722326773047,1.72810759,67051.0,67050.0,0.21374716]
[1722326773913,1.58717929,67051.0,67050.0,0.21374716]
[1722326774088,1.73025073,67051.0,67050.0,0.21374716]
[1722326775266,1.75365497,67051.0,67050.0,0.21374716]
[1722326776325,1.97399715,67051.0,67050.0,0.21374716]
[1722326776643,1.75365497,67051.0,67050.0,0.21374716]
[1722326777076,1.75385723,67051.0,67050.0,0.21374716]
[1722326778074,1.75385723,67051.0,67050.0,0.15334716]
[1722326778378,1.044043,67047.0,67046.0,0.000913]
[1722326778514,1.66731767,67047.0,67046.0,0.000913]
[1722326778957,1.69031767,67047.0,67046.0,0.000913]
[1722326780234,1.54704397,67047.0,67046.0,0.000913]
[1722326780435,1.68892639,67047.0,67046.0,0.000913]
[1722326780659,1.83962071,67047.0,67046.0,0.000913]
[1722326780862,1.69773829,67047.0,67046.0,0.000913]
[1722326781037,1.86461926,67047.0,67046.0,0.000913]
[1722326781238,1.71392494,67047.0,67046.0,0.000913]
[1722326781486,1.41562694,67047.0,67046.0,0.000913]
[1722326781897,1.41562694,67047.0,67046.0,0.142713]
[1722326782039,1.41562694,67047.0,67046.0,0.152713]
[1722326782040,1.63601111,67047.0,67046.0,0.152713]
[1722326783476,1.27374597,67047.0,67046.0,0.152713]
[1722326783674,1.63742719,67047.0,67046.0,0.152713]
[1722326784075,1.63742719,67047.0,67046.0,0.142713]
[1722326784444,1.81152615,67047.0,67046.0,0.142713]
[1722326785283,1.73292615,67047.0,67046.0,0.142713]
[1722326785844,1.70952151,67047.0,67046.0,0.142713]
[1722326786910,1.34584029,67047.0,67046.0,0.142713]
[1722326787114,1.48851898,67047.0,67046.0,0.142713]
[1722326787920,1.33782466,67047.0,67046.0,0.152713]
[1722326788122,1.55828736,67047.0,67046.0,0.152713]
[1722326788325,1.55828736,67047.0,67046.0,0.142713]
[1722326788641,1.33782466,67047.0,67046.0,0.142713]
[1722326788817,1.3612293,67047.0,67046.0,0.142713]
[1722326789020,1.51192362,67047.0,67046.0,0.142713]
[1722326789429,1.51265915,67047.0,67046.0,0.142713]
[1722326789873,1.36196483,67047.0,67046.0,0.142713]
[1722326790177,1.21855061,67047.0,67046.0,0.152713]
[1722326790377,1.36161858,67047.0,67046.0,0.152713]
[1722326790821,1.33821394,67047.0,67046.0,0.152713]
[1722326791026,1.33821394,67047.0,67046.0,0.000913]
[1722326791027,2.25890626,67047.0,67046.0,0.000913]
[1722326791338,2.03651194,67047.0,67046.0,0.083413]
[1722326792581,2.03793074,67047.0,67046.0,0.083413]
[1722326793565,2.03789011,67047.0,67046.0,0.083413]
[1722326795252,1.43959211,67047.0,67046.0,0.16876016]
[1722326795440,1.43959211,67047.0,67046.0,0.15876016]
[1722326795998,0.71999611,67047.0,67046.0,0.23506016]
[1722326796438,0.9290126,67047.0,67046.0,0.23506016]
[1722326796639,0.62776495,67047.0,67046.0,0.23506016]
[1722326797507,0.62776495,67047.0,67046.0,0.24073643]
[1722326799970,0.57554997,67047.0,67046.0,0.24073643]
[1722326800168,0.62796975,67047.0,67046.0,0.24073643]
[1722326800551,0.62812351,67047.0,67046.0,0.24073643]
[1722326801173,0.65152871,67047.0,67046.0,0.24073643]
[1722326802120,0.20408171,67047.0,67046.0,0.24073643]
[1722326802317,0.18067651,67047.0,67046.0,0.24073643]
[1722326802518,0.18067651,67047.0,67046.0,0.38988743]
[1722326802669,0.18069216,67047.0,67046.0,0.38988743]
[1722326803073,0.18069216,67047.0,67046.0,0.24073643]
[1722326803451,0.1805631,67047.0,67046.0,0.24073643]
[1722326804280,0.3297121,67047.0,67046.0,0.24073643]
[1722326804485,0.48079721,67047.0,67046.0,0.24073643]
[1722326805259,0.5042016,67047.0,67046.0,0.24073643]
[1722326805440,0.8024996,67047.0,67046.0,0.24073643]
[1722326805647,0.77909521,67047.0,67046.0,0.24073643]
[1722326805873,0.48079721,67047.0,67046.0,0.24073643]
[1722326806011,0.48079721,67047.0,67046.0,0.23506016]
[1722326806213,0.33164821,67047.0,67046.0,0.23506016]
[1722326806432,0.33164821,67047.0,67046.0,0.24072938]
[1722326806655,0.48078159,67047.0,67046.0,0.24072938]
[1722326808370,0.35311636,67047.0,67046.0,0.24072938]
[1722326808747,0.35311636,67047.0,67046.0,0.23506016]
[1722326809127,0.35311636,67047.0,67046.0,0.24071063]
[1722326809548,0.20396736,67047.0,67046.0,0.24071063]
[1722326809757,0.20396736,67047.0,67046.0,0.38986163]
[1722326809758,0.15150723,67047.0,67046.0,0.38986163]
[1722326809957,0.20305229,67047.0,67046.0,1.08696109]
[1722326810221,0.20305229,67047.0,67046.0,1.28476763]
[1722326810222,0.15150723,67047.0,67046.0,1.28476763]
[1722326810458,0.13788442,67047.0,67046.0,1.73370267]
[1722326810664,0.04840426,67047.0,67046.0,1.58609499]
[1722326810833,0.04840426,67047.0,67046.0,1.43540067]
[1722326811038,0.03740426,67047.0,67046.0,1.43540067]
[1722326811236,0.04472024,67050.0,67049.0,1.054011]
[1722326811391,0.08948016,67053.0,67050.0,0.604726]
[1722326811392,0.04472024,67051.0,67050.0,0.604726]
[1722326811614,0.1126802,67057.0,67051.0,0.903]
[1722326811615,0.04472024,67052.0,67051.0,0.903]
[1722326811822,0.04472024,67052.0,67051.0,1.27988]
[1722326812007,0.00083,67057.0,67052.0,1.201262]
[1722326812008,0.06710985,67053.0,67052.0,1.201262]
[1722326812207,0.11262383,67057.0,67056.0,0.600087]
[1722326812432,0.00083,67057.0,67056.0,0.678687]
[1722326812652,0.09022024,67057.0,67056.0,0.98256523]
[1722326813168,0.09022022,67057.0,67056.0,0.90396523]
[1722326813590,0.06784684,67057.0,67056.0,0.90396523]
[1722326814141,0.06884684,67057.0,67056.0,1.20222323]
[1722326814343,0.09224686,67057.0,67056.0,1.20222323]
[1722326814569,0.00183,67057.0,67056.0,1.20222323]
[1722326814771,0.00283,67057.0,67056.0,0.91596523]
[1722326815088,0.00283,67057.0,67056.0,0.61770723]
[1722326815503,0.04747947,67057.0,67056.0,0.61770723]
[1722326816288,0.00283,67057.0,67056.0,0.61770723]
[1722326816513,0.04747944,67057.0,67056.0,0.61770723]
[1722326816870,0.14747944,67057.0,67056.0,0.61770723]
[1722326817091,0.10283,67057.0,67056.0,0.61770723]
[1722326817292,0.78506,67057.0,67056.0,0.09562023]
[1722326817522,0.39858311,67057.0,67056.0,0.10562023]
[1722326817717,0.74821529,67057.0,67056.0,0.1]
[1722326817937,0.72481557,67057.0,67056.0,0.10562023]
[1722326818877,1.02306857,67057.0,67056.0,0.10562023]
[1722326819290,1.02306857,67057.0,67056.0,0.1]
[1722326819491,0.72481557,67057.0,67056.0,0.1]
[1722326819731,0.72568634,67057.0,67056.0,0.1]
[1722326820232,0.72568635,67057.0,67056.0,0.1]
[1722326820353,1.02393935,67057.0,67056.0,0.1]
[1722326821117,0.67354646,67057.0,67056.0,0.1]
[1722326821311,0.69694688,67057.0,67056.0,0.1]
[1722326821468,0.69694688,67057.0,67056.0,0.10561523]
[1722326821670,0.64469692,67057.0,67056.0,0.1]
[1722326822761,0.69679751,67057.0,67056.0,0.1]
[1722326822966,0.69679751,67057.0,67056.0,0.09]
[1722326822967,1.10884067,67057.0,67056.0,0.09]
[1722326823413,1.40709367,67057.0,67056.0,0.09]
[1722326823747,1.10784067,67057.0,67056.0,0.078]
[1722326823868,1.10684067,67057.0,67056.0,0.078]
[1722326824074,1.10784067,67057.0,67056.0,0.084]
[1722326825193,1.10784067,67057.0,67056.0,0.094]
[1722326825194,1.05574008,67057.0,67056.0,0.094]
[1722326825412,1.10821764,67057.0,67056.0,0.084]
[1722326826257,0.99442748,67057.0,67056.0,0.084]
[1722326827695,1.29268048,67057.0,67056.0,0.084]
[1722326828411,1.31568048,67057.0,67056.0,0.006]
[1722326828590,1.29233402,67057.0,67056.0,0.006]
[1722326828911,1.81365312,67057.0,67056.0,0.006]
[1722326829058,1.51540012,67057.0,67056.0,0.006]
[1722326829256,1.94745312,67057.0,67056.0,0.006]
[1722326829468,1.94745312,67057.0,67043.0,0.070629]
[1722326829469,1.044043,67047.0,67043.0,0.009229]
[1722326829644,1.044043,67047.0,67043.0,0.019229]
[1722326829645,1.3088453,67047.0,67043.0,0.019229]
[1722326830046,1.16766202,67047.0,67046.0,0.22526016]
[1722326830269,0.86936402,67047.0,67046.0,0.22526016]
[1722326830894,0.86936402,67047.0,67046.0,0.23087614]
[1722326831092,0.87836402,67047.0,67046.0,0.22526016]
[1722326831510,0.90476799,67047.0,67046.0,0.22526016]
[1722326831722,0.90484032,67047.0,67046.0,0.22526016]
[1722326831925,1.01603869,67047.0,67046.0,0.22526016]
[1722326832309,1.00703885,67047.0,67046.0,0.22526016]
[1722326832780,1.01303885,67047.0,67046.0,0.22526016]
[1722326833115,1.14701804,67047.0,67046.0,0.22526016]
[1722326833323,1.14401804,67047.0,67046.0,0.16476016]
[1722326833533,1.01003885,67047.0,67046.0,0.16576016]
[1722326833835,1.01003885,67047.0,67046.0,0.17142309]
[1722326834450,1.01003885,67047.0,67046.0,0.16576016]
[1722326834858,0.9574348,67047.0,67046.0,0.16576016]
[1722326835034,1.0334728,67047.0,67046.0,0.16576016]
[1722326835498,1.01006861,67047.0,67046.0,0.16576016]
[1722326835860,1.01006861,67047.0,67046.0,0.15576016]
[1722326836023,1.01006861,67047.0,67046.0,0.16576016]
[1722326836227,1.17376431,67047.0,67046.0,0.15576016]
[1722326836473,0.87546631,67047.0,67046.0,0.15576016]
[1722326836812,0.87546631,67047.0,67046.0,0.16142309]
[1722326837162,0.87546631,67047.0,67046.0,0.15576016]
[1722326837786,0.87546631,67047.0,67046.0,0.07726016]
[1722326837787,1.30711583,67047.0,67046.0,0.07726016]
[1722326837985,1.52737132,67047.0,67046.0,0.07726016]
[1722326838305,1.75989802,67047.0,67046.0,0.07726016]
[1722326838535,1.84668195,67047.0,67046.0,0.07726016]
[1722326838716,1.8700875,67047.0,67046.0,0.07726016]
[1722326839337,1.8640875,67047.0,67046.0,0.001913]
[1722326839536,2.50402701,67047.0,67046.0,0.001913]
[1722326839736,2.2840875,67047.0,67046.0,0.001913]
[1722326840036,2.55897995,67047.0,67046.0,0.001913]
[1722326840189,2.55897995,67047.0,67046.0,0.000913]
[1722326840190,2.56997995,67047.0,67046.0,0.000913]
[1722326840391,2.55897995,67047.0,67046.0,0.000913]
[1722326840573,2.56197995,67047.0,67046.0,0.000913]
[1722326840775,2.57597995,67047.0,67046.0,0.000913]
[1722326841110,2.57297995,67047.0,67046.0,0.000913]
[1722326841315,2.44657802,67047.0,67046.0,0.000913]
[1722326841515,2.58780319,67047.0,67046.0,0.000913]
[1722326841965,2.57480358,67047.0,67046.0,0.000913]
[1722326842725,2.56080358,67047.0,67046.0,0.000913]
[1722326842928,2.59821182,67047.0,67046.0,0.000913]
[1722326843132,2.57480358,67047.0,67046.0,0.000913]
[1722326843750,2.57478514,67047.0,67046.0,0.000913]
[1722326844166,2.58878514,67047.0,67046.0,0.000913]
[1722326844366,2.57878514,67047.0,67046.0,0.000913]
[1722326844771,2.58878514,67047.0,67046.0,0.000913]
[1722326845173,0.02,67046.0,67043.0,0.009229]
[1722326845450,0.02,67046.0,67036.0,0.07534716]
[1722326845451,0.583871,67037.0,67036.0,0.07534716]
[1722326845665,1.71224962,67037.0,67036.0,0.07534716]
[1722326845833,2.61727562,67037.0,67036.0,0.04147742]
[1722326846133,2.75062714,67037.0,67036.0,0.04147742]
[1722326846336,2.75062714,67037.0,67036.0,0.03992542]
[1722326846337,2.76062714,67037.0,67036.0,0.03992542]
[1722326846537,2.78403752,67037.0,67036.0,0.03992542]
[1722326846771,2.77403752,67037.0,67036.0,0.03992542]
[1722326847000,2.76062714,67037.0,67036.0,0.03992542]
[1722326847389,2.77462714,67037.0,67036.0,0.03992542]
[1722326847603,2.78862714,67037.0,67036.0,0.03992542]
[1722326847999,1.706801,67029.0,67028.0,0.07534716]
[1722326848200,2.52879128,67029.0,67028.0,0.07534716]
[1722326849081,2.52864421,67029.0,67028.0,0.07534716]
[1722326849706,2.55205707,67029.0,67028.0,0.07534716]
[1722326850006,2.57605707,67029.0,67028.0,0.07534716]
[1722326850207,2.70975687,67029.0,67028.0,0.07534716]
[1722326850584,2.71975687,67029.0,67028.0,0.07534716]
[1722326850792,2.71975687,67029.0,67023.0,0.01799978]
[1722326850793,1.7174,67024.0,67023.0,0.01799978]
[1722326850968,1.6825875,67024.0,67023.0,0.01799978]
[1722326851188,1.6825875,67024.0,67022.0,0.01799978]
[1722326851189,1.044417,67023.0,67022.0,0.01799978]
[1722326851451,1.29212573,67023.0,67022.0,0.01799978]
[1722326851657,1.59086326,67023.0,67022.0,0.01799978]
[1722326852191,1.66969289,67023.0,67022.0,0.01799978]
[1722326852831,1.59086326,67023.0,67022.0,0.01799978]
[1722326853204,1.70217356,67023.0,67022.0,0.01799978]
[1722326853627,1.71617356,67023.0,67022.0,0.01799978]
[1722326854231,1.60486326,67023.0,67022.0,0.01799978]
[1722326854550,1.83446878,67023.0,67022.0,0.01799978]
[1722326854751,1.9851631,67023.0,67022.0,0.01799978]
[1722326854984,1.96174718,67023.0,67022.0,0.01799978]
[1722326855202,2.05075004,67023.0,67022.0,0.01799978]
[1722326855450,2.05075004,67023.0,67016.0,0.0799]
[1722326855451,1.044508,67017.0,67016.0,0.0799]
[1722326855658,1.35382569,67017.0,67016.0,0.0799]
[1722326856246,1.04454,67015.0,67012.0,0.1462]
[1722326856423,1.29237086,67015.0,67012.0,0.1462]
[1722326857031,1.29237086,67015.0,67013.0,0.01]
[1722326857244,1.29237086,67015.0,67014.0,0.08534716]
[1722326857438,1.29637086,67015.0,67014.0,0.08534716]
[1722326857645,1.29556565,67015.0,67014.0,0.08534716]
[1722326857842,1.2426275,67015.0,67014.0,0.16244716]
[1722326858086,1.29556526,67015.0,67014.0,0.16244716]
[1722326858284,1.31898172,67015.0,67014.0,0.15244716]
[1722326858462,1.46105973,67015.0,67014.0,0.15244716]
[1722326858979,1.31898172,67015.0,67014.0,0.15244716]
[1722326859300,1.31898172,67015.0,67014.0,0.16244716]
[1722326859506,1.32998172,67015.0,67014.0,0.16244716]
[1722326859887,1.32998172,67015.0,67014.0,0.15244716]
[1722326860962,1.32976333,67015.0,67014.0,0.15244716]
[1722326861186,1.48045765,67015.0,67014.0,0.15244716]
[1722326862173,1.48045765,67015.0,67014.0,0.16244716]
[1722326862641,1.48045765,67015.0,67014.0,0.15244716]
[1722326862847,1.42773828,67015.0,67014.0,0.15244716]
[1722326862980,1.47321905,67015.0,67014.0,0.15244716]
[1722326863179,1.42048349,67015.0,67014.0,0.15244716]
[1722326863378,1.47321905,67015.0,67014.0,0.15244716]
[1722326863788,1.47321905,67015.0,67014.0,0.16244716]
[1722326863789,1.32252473,67015.0,67014.0,0.16244716]
[1722326864473,1.32255901,67015.0,67014.0,0.22264716]
[1722326865495,0.15501901,67015.0,67014.0,0.22264716]
[1722326865643,0.25146917,67015.0,67014.0,0.22264716]
[1722326865847,0.25146917,67015.0,67014.0,0.22844124]
[1722326866233,0.07883271,67015.0,67014.0,0.22844124]
[1722326866676,0.06783271,67015.0,67014.0,0.22844124]
[1722326867011,0.51749271,67015.0,67014.0,0.22844124]
[1722326867230,0.62492698,67015.0,67014.0,0.22844124]
[1722326867396,0.92336698,67015.0,67014.0,0.1473]
[1722326867942,0.97683941,67015.0,67014.0,0.1473]
[1722326868764,0.97783941,67015.0,67014.0,0.14678755]
[1722326869105,0.97683941,67015.0,67014.0,0.14678755]
[1722326869428,0.99825478,67015.0,67014.0,0.14678755]
[1722326869607,0.88982051,67015.0,67014.0,0.14678755]
[1722326870838,0.83634808,67015.0,67014.0,0.14678755]
[1722326871036,1.19643645,67015.0,67014.0,0.14678755]
[1722326871234,1.19643645,67015.0,67014.0,0.13678755]
[1722326871438,1.1964382,67015.0,67014.0,0.13678755]
[1722326871642,1.33618359,67015.0,67014.0,0.13678755]
[1722326871969,1.33618359,67015.0,67014.0,0.07658755]
[1722326872179,1.5131733,67015.0,67014.0,0.07658755]
[1722326872382,1.42601799,67015.0,67014.0,0.07658755]
[1722326872559,1.40261571,67015.0,67014.0,0.07658755]
[1722326872965,1.33576822,67015.0,67014.0,0.07658755]
[1722326873125,1.42493893,67015.0,67014.0,0.07658755]
[1722326873329,1.51472988,67015.0,67014.0,0.07658755]
[1722326873530,1.51017568,67015.0,67014.0,0.07658755]
[1722326873797,1.51317568,67015.0,67014.0,0.07658755]
[1722326873968,1.51317568,67015.0,67014.0,0.06206755]
[1722326873969,1.42558002,67015.0,67014.0,0.06206755]
[1722326874179,1.34337092,67015.0,67014.0,0.06206755]
[1722326874378,1.52141175,67015.0,67014.0,0.06206755]
[1722326874608,1.51441235,67015.0,67014.0,0.06206755]
[1722326874789,1.52409919,67015.0,67014.0,0.06206755]
[1722326874995,1.52495632,67015.0,67014.0,0.06206755]
[1722326875243,1.4319491,67015.0,67014.0,0.08004454]
[1722326875454,1.4319491,67015.0,67014.0,0.01797699]
[1722326875455,1.84304395,67015.0,67014.0,0.01797699]
[1722326875656,1.84704395,67015.0,67014.0,0.01797699]
[1722326875834,1.84582672,67015.0,67014.0,0.01797699]
[1722326876036,1.94582672,67015.0,67014.0,0.01797699]
[1722326876250,1.8343891,67015.0,67014.0,0.01797699]
[1722326876376,1.83520088,67015.0,67014.0,0.01797699]
[1722326876576,1.8343891,67015.0,67014.0,0.01797699]
[1722326877402,1.83425849,67015.0,67014.0,0.01797699]
[1722326877801,1.83575604,67015.0,67014.0,0.01797699]
[1722326879466,1.93425849,67015.0,67014.0,0.01797699]
[1722326880628,1.79344994,67015.0,67014.0,0.01797699]
[1722326880837,1.95810086,67015.0,67014.0,0.01797699]
[1722326881031,1.93468331,67015.0,67014.0,0.01797699]
[1722326881240,1.79564637,67015.0,67014.0,0.01797699]
[1722326882261,1.94640312,67015.0,67014.0,0.01797699]
[1722326882893,1.79564637,67015.0,67014.0,0.01797699]
[1722326883092,1.79602552,67015.0,67014.0,0.01797699]
[1722326883290,1.79614787,67015.0,67014.0,0.01797699]
[1722326883699,1.79614787,67015.0,67014.0,0.10937699]
[1722326883700,1.49770787,67015.0,67014.0,0.10937699]
[1722326883899,1.19926787,67015.0,67014.0,0.17477699]
[1722326884102,1.19926787,67015.0,67014.0,0.32399899]
[1722326884103,0.23296263,67015.0,67014.0,0.32399899]
[1722326884335,0.23296263,67015.0,67014.0,0.17477699]
[1722326884545,0.23296263,67015.0,67014.0,0.18059943]
[1722326884770,0.38218263,67015.0,67014.0,0.18059943]
[1722326884957,0.25637741,67015.0,67014.0,0.18059943]
[1722326885234,0.30385929,67015.0,67014.0,0.18059943]
[1722326885589,0.3856586,67015.0,67014.0,0.18059943]
[1722326886011,0.5348786,67015.0,67014.0,0.18059943]
[1722326886212,0.53563643,67015.0,67014.0,0.18059943]
[1722326886408,0.53563643,67015.0,67014.0,0.18151243]
[1722326886611,0.83490643,67015.0,67014.0,0.18151243]
[1722326886814,0.53646643,67015.0,67014.0,0.18151243]
[1722326887014,0.83490643,67015.0,67014.0,0.18151243]
[1722326887248,0.67068585,67015.0,67014.0,0.18151243]
[1722326888039,0.41015126,67015.0,67014.0,0.18151243]
[1722326888247,0.41019089,67015.0,67014.0,0.25685959]
[1722326888635,0.27593184,67015.0,67014.0,0.25685959]
[1722326889038,0.42515184,67015.0,67014.0,0.25685959]
[1722326889260,0.48752065,67015.0,67014.0,0.25685959]
[1722326889462,0.78160211,67015.0,67014.0,0.25685959]
[1722326889729,0.47316219,67015.0,67014.0,0.25685959]
[1722326890114,0.32394219,67015.0,67014.0,0.25685959]
[1722326890666,0.47316219,67015.0,67014.0,0.25685959]
[1722326891483,0.2381586,67015.0,67014.0,0.25685959]
[1722326891942,0.2381586,67015.0,67014.0,0.40608159]
[1722326892478,0.26157338,67015.0,67014.0,0.25685959]
[1722326892697,0.18362931,67015.0,67014.0,0.25685959]
[1722326892906,0.23836887,67015.0,67014.0,0.25685959]
[1722326893387,0.23836887,67015.0,67014.0,0.40608159]
[1722326893388,0.2383452,67015.0,67014.0,0.40608159]
[1722326893596,0.37265855,67015.0,67014.0,0.70452659]
[1722326894022,0.18362931,67015.0,67014.0,1.00297159]
[1722326894221,0.18362931,67015.0,67014.0,1.30141659]
[1722326895267,0.18362931,67015.0,67014.0,1.00297159]
[1722326895648,0.20704322,67015.0,67014.0,0.25685959]
[1722326895927,0.37328335,67015.0,67014.0,0.25685959]
[1722326896169,0.18362931,67015.0,67014.0,0.25685959]
[1722326896370,0.18518351,67015.0,67014.0,0.25685959]
[1722326896551,0.37458852,67015.0,67014.0,0.25685959]
[1722326896752,0.37303432,67015.0,67014.0,0.25685959]
[1722326898126,0.37458852,67015.0,67014.0,0.25685959]
[1722326898580,0.52380852,67015.0,67014.0,0.25685959]
[1722326898780,0.52225432,67015.0,67014.0,0.25685959]
[1722326899167,0.4671078,67015.0,67014.0,0.25685959]
[1722326899365,0.65187445,67015.0,67014.0,0.25685959]
[1722326899549,0.50265445,67015.0,67014.0,0.25685959]
[1722326899746,0.50420865,67015.0,67014.0,0.25685959]
[1722326899973,0.50265445,67015.0,67014.0,0.25685959]
[1722326900169,0.65187445,67015.0,67014.0,0.25685959]
[1722326900983,0.26184376,67015.0,67014.0,0.25685959]
[1722326901188,0.2085975,67015.0,67014.0,0.25685959]
[1722326901545,0.2070433,67015.0,67014.0,0.25685959]
[1722326901753,0.26341437,67015.0,67014.0,0.25685959]
[1722326901991,0.41108045,67015.0,67014.0,0.25685959]
[1722326902146,0.41263465,67015.0,67014.0,0.25685959]
[1722326902365,0.3562633,67015.0,67014.0,0.25685959]
[1722326902562,0.41123232,67015.0,67014.0,0.25685959]
[1722326902763,0.5199704,67015.0,67014.0,0.25685959]
[1722326903188,0.41123232,67015.0,67014.0,0.25685959]
[1722326903390,0.26201232,67015.0,67014.0,0.25685959]
[1722326903596,0.41123232,67015.0,67014.0,0.25685959]
[1722326903801,0.26356652,67015.0,67014.0,0.25685959]
[1722326904009,0.3578175,67015.0,67014.0,0.25685959]
[1722326904164,0.41278127,67015.0,67014.0,0.25685959]
[1722326904877,0.41122707,67015.0,67014.0,0.25685959]
[1722326905727,0.3562633,67015.0,67014.0,0.25685959]
[1722326905925,0.41130456,67015.0,67014.0,0.25685959]
[1722326906081,0.41216828,67015.0,67014.0,0.25685959]
[1722326906282,0.41130456,67015.0,67014.0,0.25685959]
[1722326906874,0.38789057,67015.0,67014.0,0.25685959]
[1722326907128,0.38944477,67015.0,67014.0,0.25685959]
[1722326907329,0.38789057,67015.0,67014.0,0.25685959]
[1722326910074,0.68633057,67015.0,67014.0,0.25685959]
[1722326910301,0.41130456,67015.0,67014.0,0.25685959]
[1722326910518,1.00818456,67015.0,67014.0,0.24685959]
[1722326910720,1.00818456,67015.0,67014.0,0.25685959]
[1722326910935,1.00818456,67015.0,67014.0,0.25103715]
[1722326911176,1.30662456,67015.0,67014.0,0.11028999]
[1722326911803,1.28321057,67015.0,67014.0,0.11028999]
[1722326911998,1.28221057,67015.0,67014.0,0.11028999]
[1722326912406,1.22716931,67015.0,67014.0,0.11428999]
[1722326912575,1.28466022,67015.0,67014.0,0.11428999]
[1722326912752,1.40537715,67015.0,67014.0,0.11028999]
[1722326912953,1.40537493,67015.0,67014.0,0.11028999]
[1722326913153,1.41037493,67015.0,67014.0,0.11228999]
[1722326913474,1.40537493,67015.0,67014.0,0.11228999]
[1722326913677,1.42028602,67015.0,67014.0,0.11028999]
[1722326913889,1.42028602,67015.0,67014.0,0.11128999]
[1722326914101,1.42028602,67015.0,67014.0,0.10128999]
[1722326914243,1.42028602,67015.0,67014.0,0.01988999]
[1722326914645,1.42028602,67015.0,67014.0,0.02988999]
[1722326914882,1.4437007,67015.0,67014.0,0.01988999]
[1722326915081,1.5947449,67015.0,67014.0,0.01888999]
[1722326915535,1.4387007,67015.0,67014.0,0.01888999]